[Event "Early-Titled-Tuesday-Blitz-November-28-2023"]
[Site "Chess.com"]
[Date "2023.11.28"]
[Round "8"]
[White "Tsomaia_Nikoloz"]
[Black "alvarorodriguezavila"]
[Result "0-1"]
[WhiteElo "2338"]
[BlackElo "2239"]
[TimeControl "180+1"]
[EndTime "9:34:27 PST"]
[Termination "alvarorodriguezavila won on time"]

1. e4 {[%clk 0:02:56.6]} 1... c5 {[%clk 0:02:58.8]} 2. Nf3 {[%clk 0:02:56.2]}
2... d6 {[%clk 0:02:59.5]} 3. d4 {[%clk 0:02:51.6]} 3... cxd4 {[%clk 0:03:00.4]}
4. Qxd4 {[%clk 0:02:52.1]} 4... a6 {[%clk 0:02:57.8]} 5. Bc4 {[%clk 0:02:51.6]}
5... Nc6 {[%clk 0:02:58.2]} 6. Qd3 {[%clk 0:02:52.1]} 6... Nf6 {[%clk
0:02:58.2]} 7. Nc3 {[%clk 0:02:51.6]} 7... g6 {[%clk 0:02:56.9]} 8. Bf4 {[%clk
0:02:03]} 8... Bg7 {[%clk 0:02:56]} 9. O-O-O {[%clk 0:02:03.1]} 9... O-O {[%clk
0:02:53.7]} 10. Bb3 {[%clk 0:01:58.6]} 10... Nd7 {[%clk 0:02:46.1]} 11. Bg3
{[%clk 0:01:49]} 11... Nc5 {[%clk 0:02:46.4]} 12. Qe2 {[%clk 0:01:47.1]} 12...
a5 {[%clk 0:02:45.1]} 13. e5 {[%clk 0:01:43.3]} 13... a4 {[%clk 0:02:45.6]} 14.
Bc4 {[%clk 0:01:42.7]} 14... a3 {[%clk 0:02:16.7]} 15. b3 {[%clk 0:01:40.2]}
15... Qa5 {[%clk 0:02:16.2]} 16. Nd5 {[%clk 0:01:34.5]} 16... Be6 {[%clk
0:01:53.5]} 17. Qd2 {[%clk 0:01:11.5]} 17... Qxd2+ {[%clk 0:01:48.8]} 18. Rxd2
{[%clk 0:01:11.5]} 18... Bh6 {[%clk 0:01:47.9]} 19. exd6 {[%clk 0:01:06.9]}
19... Bxd2+ {[%clk 0:01:44.5]} 20. Nxd2 {[%clk 0:01:05.2]} 20... Bxd5 {[%clk
0:01:10.1]} 21. Bxd5 {[%clk 0:00:55.7]} 21... e6 {[%clk 0:01:10.6]} 22. Bxc6
{[%clk 0:00:31.9]} 22... bxc6 {[%clk 0:01:11.5]} 23. b4 {[%clk 0:00:27.8]} 23...
Na4 {[%clk 0:01:09]} 24. Bh4 {[%clk 0:00:16.1]} 24... Nc3 {[%clk 0:01:07.8]} 25.
d7 {[%clk 0:00:08.1]} 25... f6 {[%clk 0:01:06.4]} 26. Nc4 {[%clk 0:00:06.6]}
26... g5 {[%clk 0:00:58.9]} 27. Bg3 {[%clk 0:00:06]} 27... Rad8 {[%clk
0:00:59.4]} 28. Nb6 {[%clk 0:00:04.5]} 28... Nd5 {[%clk 0:00:55.8]} 29. Nxd5
{[%clk 0:00:01.9]} 29... cxd5 {[%clk 0:00:56.4]} 30. Bd6 {[%clk 0:00:01.3]}
30... Rf7 {[%clk 0:00:54]} 31. Bc5 {[%clk 0:00:01.2]} 31... Rfxd7 {[%clk
0:00:53.6]} 32. Re1 {[%clk 0:00:02.1]} 32... Kf7 {[%clk 0:00:53.8]} 33. c3
{[%clk 0:00:01.5]} 33... e5 {[%clk 0:00:53.4]} 34. Kc2 {[%clk 0:00:02.1]} 34...
h5 {[%clk 0:00:53.3]} 35. Kb3 {[%clk 0:00:02.2]} 35... Ra8 {[%clk 0:00:53.6]}
36. b5 {[%clk 0:00:02.2]} 36... Rc7 {[%clk 0:00:51.2]} 37. Kb4 {[%clk
0:00:01.9]} 37... Rac8 {[%clk 0:00:51.1]} 38. Bd6 {[%clk 0:00:01.6]} 38... Rxc3
{[%clk 0:00:50.1]} 39. b6 {[%clk 0:00:01.2]} 39... Rc2 {[%clk 0:00:47.8]} 0-1

[Event "Early-Titled-Tuesday-Blitz-November-28-2023"]
[Site "Chess.com"]
[Date "2023.11.28"]
[Round "8"]
[White "RodokininEV"]
[Black "Rakhmanov_Aleksandr"]
[Result "0-1"]
[WhiteElo "2622"]
[BlackElo "2850"]
[TimeControl "180+1"]
[EndTime "9:34:32 PST"]
[Termination "Rakhmanov_Aleksandr won by resignation"]

1. d4 {[%clk 0:03:00.9]} 1... Nf6 {[%clk 0:02:30.2]} 2. c4 {[%clk 0:03:00.6]}
2... d6 {[%clk 0:02:29.6]} 3. Nf3 {[%clk 0:03:00.7]} 3... g6 {[%clk 0:02:29.6]}
4. Nc3 {[%clk 0:03:01.2]} 4... Bf5 {[%clk 0:02:30.1]} 5. e4 {[%clk 0:03:01.9]}
5... Nxe4 {[%clk 0:02:29.7]} 6. Qb3 {[%clk 0:02:56.8]} 6... Nxc3 {[%clk
0:02:29.7]} 7. Qxb7 {[%clk 0:02:40.7]} 7... Be4 {[%clk 0:02:29.1]} 8. Qb3 {[%clk
0:02:34.8]} 8... Nxa2 {[%clk 0:01:31]} 9. Rxa2 {[%clk 0:02:22.7]} 9... Bg7
{[%clk 0:01:31.3]} 10. Be3 {[%clk 0:02:21.4]} 10... O-O {[%clk 0:01:30.7]} 11.
Be2 {[%clk 0:02:20.7]} 11... Nc6 {[%clk 0:01:27.6]} 12. Qa4 {[%clk 0:02:06]}
12... Qe8 {[%clk 0:01:03.9]} 13. O-O {[%clk 0:01:41.5]} 13... a5 {[%clk
0:01:01.1]} 14. Rd1 {[%clk 0:01:36.7]} 14... Nb4 {[%clk 0:00:59.5]} 15. Raa1
{[%clk 0:01:31.8]} 15... Qxa4 {[%clk 0:00:58.7]} 16. Rxa4 {[%clk 0:01:31.3]}
16... Bc2 {[%clk 0:00:59.3]} 17. Rda1 {[%clk 0:01:28.3]} 17... Bxa4 {[%clk
0:00:58.8]} 18. Rxa4 {[%clk 0:01:29.2]} 18... Nc2 {[%clk 0:00:57.5]} 19. Bd3
{[%clk 0:01:20.4]} 19... Nxe3 {[%clk 0:00:56.4]} 20. fxe3 {[%clk 0:01:21.3]}
20... Rfb8 {[%clk 0:00:56.3]} 21. Ra2 {[%clk 0:01:18.4]} 21... a4 {[%clk
0:00:56.4]} 22. Kf2 {[%clk 0:01:16.9]} 22... Rb4 {[%clk 0:00:54.5]} 23. Ke2
{[%clk 0:01:10.4]} 23... Rab8 {[%clk 0:00:54.7]} 24. Nd2 {[%clk 0:01:10]} 24...
c5 {[%clk 0:00:51.3]} 25. dxc5 {[%clk 0:00:34.7]} 25... dxc5 {[%clk 0:00:52.2]}
26. Kd1 {[%clk 0:00:24.9]} 26... Bxb2 {[%clk 0:00:49.7]} 27. Ne4 {[%clk
0:00:24]} 27... Be5 {[%clk 0:00:44.5]} 28. Nxc5 {[%clk 0:00:21.1]} 28... Bxh2
{[%clk 0:00:41.9]} 29. Na6 {[%clk 0:00:19.8]} 29... Rb2 {[%clk 0:00:39.6]} 30.
Rxa4 {[%clk 0:00:19.9]} 30... Rd8 {[%clk 0:00:39.7]} 31. Ra3 {[%clk 0:00:17.6]}
31... Rxg2 {[%clk 0:00:38.2]} 32. c5 {[%clk 0:00:17.5]} 32... h5 {[%clk
0:00:30.8]} 33. c6 {[%clk 0:00:17.1]} 33... h4 {[%clk 0:00:31.6]} 34. Rb3 {[%clk
0:00:14.4]} 34... h3 {[%clk 0:00:30]} 35. c7 {[%clk 0:00:14.6]} 35... Bxc7
{[%clk 0:00:30.2]} 36. Nxc7 {[%clk 0:00:15.5]} 36... h2 {[%clk 0:00:30.3]} 0-1

[Event "Early-Titled-Tuesday-Blitz-November-28-2023"]
[Site "Chess.com"]
[Date "2023.11.28"]
[Round "8"]
[White "Kostya0705"]
[Black "psychokiller48"]
[Result "1-0"]
[WhiteElo "2550"]
[BlackElo "2692"]
[TimeControl "180+1"]
[EndTime "9:34:33 PST"]
[Termination "Kostya0705 won on time"]

1. e4 {[%clk 0:02:40.3]} 1... e5 {[%clk 0:02:54.5]} 2. Nf3 {[%clk 0:02:39.2]}
2... Nc6 {[%clk 0:02:54.9]} 3. Bc4 {[%clk 0:02:39.4]} 3... Bc5 {[%clk
0:02:54.6]} 4. c3 {[%clk 0:02:39.2]} 4... Nf6 {[%clk 0:02:55.1]} 5. d4 {[%clk
0:02:37.4]} 5... exd4 {[%clk 0:02:53.7]} 6. b4 {[%clk 0:02:37.2]} 6... Bf8
{[%clk 0:02:43.3]} 7. e5 {[%clk 0:02:33.9]} 7... d5 {[%clk 0:02:42.9]} 8. Bd3
{[%clk 0:02:20.1]} 8... Ne4 {[%clk 0:02:41.3]} 9. b5 {[%clk 0:02:18]} 9... Ne7
{[%clk 0:02:34.3]} 10. cxd4 {[%clk 0:02:15.9]} 10... Ng6 {[%clk 0:02:32.3]} 11.
O-O {[%clk 0:02:15.7]} 11... Be7 {[%clk 0:02:31.6]} 12. Nbd2 {[%clk 0:02:09.3]}
12... Nxd2 {[%clk 0:02:22.6]} 13. Bxd2 {[%clk 0:02:10.2]} 13... O-O {[%clk
0:02:22.8]} 14. Qc2 {[%clk 0:02:07.8]} 14... a6 {[%clk 0:02:14.9]} 15. a4 {[%clk
0:02:06.3]} 15... Be6 {[%clk 0:01:58.8]} 16. Rac1 {[%clk 0:02:03.4]} 16... axb5
{[%clk 0:01:55.9]} 17. axb5 {[%clk 0:02:04.3]} 17... Rc8 {[%clk 0:01:47.8]} 18.
g3 {[%clk 0:01:55.8]} 18... c5 {[%clk 0:01:43.3]} 19. bxc6 {[%clk 0:01:53.3]}
19... bxc6 {[%clk 0:01:43]} 20. h4 {[%clk 0:01:50.9]} 20... Re8 {[%clk
0:01:40.1]} 21. h5 {[%clk 0:01:49.4]} 21... Nf8 {[%clk 0:01:40.7]} 22. Be3
{[%clk 0:01:48.7]} 22... Bg4 {[%clk 0:01:36.3]} 23. Nh2 {[%clk 0:01:37.8]} 23...
Bxh5 {[%clk 0:01:22.9]} 24. f4 {[%clk 0:01:37.7]} 24... c5 {[%clk 0:00:51.6]}
25. dxc5 {[%clk 0:01:37]} 25... d4 {[%clk 0:00:51.3]} 26. Bf2 {[%clk 0:01:36.3]}
26... Rxc5 {[%clk 0:00:49.6]} 27. Qb2 {[%clk 0:01:32.3]} 27... Rc3 {[%clk
0:00:43]} 28. Rxc3 {[%clk 0:01:28.3]} 28... dxc3 {[%clk 0:00:43.9]} 29. Qxc3
{[%clk 0:01:28.8]} 29... Qd7 {[%clk 0:00:33]} 30. f5 {[%clk 0:01:18.6]} 30...
Rc8 {[%clk 0:00:32.3]} 31. Qb3 {[%clk 0:01:19.1]} 31... Bc5 {[%clk 0:00:05.9]}
32. g4 {[%clk 0:01:18.7]} 32... Bxf2+ {[%clk 0:00:06.1]} 33. Rxf2 {[%clk
0:01:19.1]} 33... Rc1+ {[%clk 0:00:06.1]} 34. Bf1 {[%clk 0:01:14.8]} 34... Qd4
{[%clk 0:00:04.1]} 35. gxh5 {[%clk 0:01:11]} 35... Rc3 {[%clk 0:00:04.7]} 36.
Qb2 {[%clk 0:00:57.8]} 36... Qxe5 {[%clk 0:00:02.5]} 37. f6 {[%clk 0:00:44.7]}
37... Rg3+ {[%clk 0:00:02.1]} 38. Kh1 {[%clk 0:00:42.9]} 38... Qe4+ {[%clk
0:00:01.7]} 39. Rg2 {[%clk 0:00:41.5]} 1-0

[Event "Early-Titled-Tuesday-Blitz-November-28-2023"]
[Site "Chess.com"]
[Date "2023.11.28"]
[Round "8"]
[White "ContrVersia"]
[Black "Meri-Arabidze"]
[Result "1-0"]
[WhiteElo "2874"]
[BlackElo "2691"]
[TimeControl "180+1"]
[EndTime "9:34:36 PST"]
[Termination "ContrVersia won on time"]

1. Nf3 {[%clk 0:02:57]} 1... b6 {[%clk 0:02:59.5]} 2. g3 {[%clk 0:02:54.1]} 2...
Bb7 {[%clk 0:02:59.6]} 3. Bg2 {[%clk 0:02:54.9]} 3... g6 {[%clk 0:03:00.2]} 4.
O-O {[%clk 0:02:55.2]} 4... Bg7 {[%clk 0:03:00.4]} 5. d4 {[%clk 0:02:55.9]} 5...
d6 {[%clk 0:02:59.8]} 6. c4 {[%clk 0:02:55.4]} 6... Nd7 {[%clk 0:02:59.6]} 7.
Nc3 {[%clk 0:02:54.8]} 7... e5 {[%clk 0:02:55.5]} 8. e4 {[%clk 0:02:53]} 8...
Ne7 {[%clk 0:02:50.3]} 9. Be3 {[%clk 0:02:47.3]} 9... O-O {[%clk 0:02:50]} 10.
d5 {[%clk 0:02:43]} 10... h6 {[%clk 0:02:48.9]} 11. b4 {[%clk 0:02:37.4]} 11...
a5 {[%clk 0:02:48.5]} 12. a3 {[%clk 0:02:37.2]} 12... Kh7 {[%clk 0:02:48.7]} 13.
Ne1 {[%clk 0:02:32.5]} 13... f5 {[%clk 0:02:46.6]} 14. Nd3 {[%clk 0:02:32.7]}
14... f4 {[%clk 0:02:34.8]} 15. Bd2 {[%clk 0:02:32.9]} 15... g5 {[%clk
0:02:33.1]} 16. f3 {[%clk 0:02:26.4]} 16... Ng6 {[%clk 0:02:29.9]} 17. Bh3
{[%clk 0:02:21.5]} 17... Ba6 {[%clk 0:02:16.5]} 18. Qb3 {[%clk 0:02:18.4]} 18...
Nf6 {[%clk 0:02:07]} 19. Bf5 {[%clk 0:02:17.2]} 19... h5 {[%clk 0:02:03]} 20.
gxf4 {[%clk 0:02:07.6]} 20... exf4 {[%clk 0:01:54.9]} 21. e5 {[%clk 0:01:55.2]}
21... Ng8 {[%clk 0:01:34.6]} 22. Bxg6+ {[%clk 0:01:47.7]} 22... Kxg6 {[%clk
0:01:35.5]} 23. b5 {[%clk 0:01:46.8]} 23... Bc8 {[%clk 0:01:31.2]} 24. e6 {[%clk
0:01:47.2]} 24... Bd4+ {[%clk 0:01:13]} 25. Kh1 {[%clk 0:01:47]} 25... Qf6
{[%clk 0:01:13.6]} 26. Rae1 {[%clk 0:01:45.3]} 26... Ne7 {[%clk 0:01:06.2]} 27.
Ne4 {[%clk 0:01:43.8]} 27... Qf5 {[%clk 0:01:06.5]} 28. Bc3 {[%clk 0:01:43.9]}
28... Be3 {[%clk 0:00:54.1]} 29. Re2 {[%clk 0:01:41.4]} 29... Bxe6 {[%clk
0:00:39.8]} 30. dxe6 {[%clk 0:01:40.4]} 30... Qxe6 {[%clk 0:00:40.1]} 31. Bd2
{[%clk 0:01:32]} 31... g4 {[%clk 0:00:21.4]} 32. Bxe3 {[%clk 0:01:15.2]} 32...
fxe3 {[%clk 0:00:22.3]} 33. Rxe3 {[%clk 0:01:11.6]} 33... Kh6 {[%clk 0:00:17.2]}
34. Qb2 {[%clk 0:01:04.7]} 34... Nf5 {[%clk 0:00:15]} 35. Ree1 {[%clk
0:01:02.1]} 35... Nh4 {[%clk 0:00:01.4]} 36. Qd2+ {[%clk 0:00:59.7]} 36... Kg7
{[%clk 0:00:01.6]} 37. Qg5+ {[%clk 0:00:59.3]} 37... Ng6 {[%clk 0:00:01.9]} 38.
Ng3 {[%clk 0:00:42.9]} 38... Rh8 {[%clk 0:00:01.6]} 39. Rxe6 {[%clk 0:00:42.3]}
1-0

[Event "Early-Titled-Tuesday-Blitz-November-28-2023"]
[Site "Chess.com"]
[Date "2023.11.28"]
[Round "8"]
[White "masterofpuppets2"]
[Black "JimDiGrease"]
[Result "0-1"]
[WhiteElo "2509"]
[BlackElo "2934"]
[TimeControl "180+1"]
[EndTime "9:34:41 PST"]
[Termination "JimDiGrease won by checkmate"]

1. d4 {[%clk 0:02:58.3]} 1... d5 {[%clk 0:02:59.9]} 2. c4 {[%clk 0:02:57.6]}
2... e6 {[%clk 0:03:00.5]} 3. Nf3 {[%clk 0:02:57]} 3... Nf6 {[%clk 0:03:00.5]}
4. g3 {[%clk 0:02:57.6]} 4... dxc4 {[%clk 0:03:00.4]} 5. Bg2 {[%clk 0:02:56.2]}
5... Bb4+ {[%clk 0:03:00.9]} 6. Nbd2 {[%clk 0:02:54.4]} 6... b5 {[%clk
0:03:00.4]} 7. O-O {[%clk 0:02:51.6]} 7... O-O {[%clk 0:03:00.5]} 8. a4 {[%clk
0:02:49.2]} 8... c6 {[%clk 0:02:59]} 9. Ne1 {[%clk 0:02:46.3]} 9... Ba6 {[%clk
0:02:48.9]} 10. axb5 {[%clk 0:02:36.6]} 10... Bxb5 {[%clk 0:02:49.8]} 11. Nc2
{[%clk 0:02:37]} 11... Be7 {[%clk 0:02:49.1]} 12. Nb1 {[%clk 0:02:35.6]} 12...
a5 {[%clk 0:02:30.4]} 13. Bd2 {[%clk 0:02:35.1]} 13... a4 {[%clk 0:02:20.9]} 14.
Qe1 {[%clk 0:02:23]} 14... Nbd7 {[%clk 0:02:19.5]} 15. Bb4 {[%clk 0:02:19.2]}
15... Ra6 {[%clk 0:02:13.6]} 16. Nc3 {[%clk 0:02:04.8]} 16... Nb6 {[%clk
0:01:58.1]} 17. e4 {[%clk 0:01:56.5]} 17... Re8 {[%clk 0:01:39.3]} 18. Qe3
{[%clk 0:01:44.5]} 18... Qc7 {[%clk 0:01:29.5]} 19. Rfd1 {[%clk 0:01:38.5]}
19... Rd8 {[%clk 0:01:23.3]} 20. h3 {[%clk 0:01:28.7]} 20... h6 {[%clk
0:01:22.2]} 21. Bc5 {[%clk 0:01:19]} 21... Bxc5 {[%clk 0:01:04.1]} 22. dxc5
{[%clk 0:01:19.9]} 22... Nbd7 {[%clk 0:01:00.5]} 23. Nb4 {[%clk 0:00:47.7]}
23... Ra5 {[%clk 0:00:35.5]} 24. e5 {[%clk 0:00:38.4]} 24... Nd5 {[%clk
0:00:34.3]} 25. Bxd5 {[%clk 0:00:33.6]} 25... cxd5 {[%clk 0:00:33.7]} 26. c6
{[%clk 0:00:13.9]} 26... Bxc6 {[%clk 0:00:33.2]} 27. Qd4 {[%clk 0:00:11.8]}
27... Nxe5 {[%clk 0:00:29.9]} 28. Kf1 {[%clk 0:00:10.3]} 28... Rb8 {[%clk
0:00:26.7]} 29. Nxc6 {[%clk 0:00:05.5]} 29... Nxc6 {[%clk 0:00:27.6]} 30. Qg4
{[%clk 0:00:04]} 30... Rxb2 {[%clk 0:00:26.7]} 31. Nxa4 {[%clk 0:00:04.3]} 31...
Rc2 {[%clk 0:00:21]} 32. Qf3 {[%clk 0:00:01.8]} 32... Qa7 {[%clk 0:00:20.9]} 33.
Qa3 {[%clk 0:00:01.9]} 33... Qxf2# {[%clk 0:00:20.5]} 0-1

[Event "Early-Titled-Tuesday-Blitz-November-28-2023"]
[Site "Chess.com"]
[Date "2023.11.28"]
[Round "8"]
[White "ElVital"]
[Black "DonCiao"]
[Result "1-0"]
[WhiteElo "2347"]
[BlackElo "2111"]
[TimeControl "180+1"]
[EndTime "9:34:42 PST"]
[Termination "ElVital won on time"]

1. c4 {[%clk 0:03:00.2]} 1... e5 {[%clk 0:02:56.9]} 2. Nc3 {[%clk 0:02:58.7]}
2... Bb4 {[%clk 0:02:55.5]} 3. g3 {[%clk 0:02:56.5]} 3... Bxc3 {[%clk
0:02:55.2]} 4. bxc3 {[%clk 0:02:56.2]} 4... Nf6 {[%clk 0:02:55.8]} 5. Bg2 {[%clk
0:02:55.8]} 5... O-O {[%clk 0:02:55.7]} 6. d4 {[%clk 0:02:55.4]} 6... e4 {[%clk
0:02:50.7]} 7. Nh3 {[%clk 0:02:53.8]} 7... c6 {[%clk 0:02:50.4]} 8. d5 {[%clk
0:02:44.6]} 8... cxd5 {[%clk 0:02:48.4]} 9. cxd5 {[%clk 0:02:45.5]} 9... Qa5
{[%clk 0:02:47.9]} 10. O-O {[%clk 0:02:44.7]} 10... Qxd5 {[%clk 0:02:46.2]} 11.
Qc2 {[%clk 0:02:41.6]} 11... Qc6 {[%clk 0:02:34.5]} 12. Ba3 {[%clk 0:02:38.4]}
12... Re8 {[%clk 0:02:33]} 13. Rfd1 {[%clk 0:02:37.4]} 13... d5 {[%clk
0:02:32.8]} 14. Nf4 {[%clk 0:02:35.1]} 14... Nbd7 {[%clk 0:02:23.7]} 15. g4
{[%clk 0:02:27.6]} 15... h6 {[%clk 0:02:12.4]} 16. h3 {[%clk 0:02:23]} 16... Nb6
{[%clk 0:02:11.6]} 17. Rd4 {[%clk 0:02:18.5]} 17... Nc4 {[%clk 0:02:02.6]} 18.
Qb3 {[%clk 0:02:09.9]} 18... b5 {[%clk 0:01:45.3]} 19. Rad1 {[%clk 0:02:06.3]}
19... Be6 {[%clk 0:01:42.4]} 20. Bc1 {[%clk 0:02:02]} 20... a5 {[%clk
0:01:40.8]} 21. f3 {[%clk 0:01:59.2]} 21... e3 {[%clk 0:01:34.3]} 22. R1d3
{[%clk 0:01:51.2]} 22... Qd6 {[%clk 0:01:18.2]} 23. Qxb5 {[%clk 0:01:25.8]}
23... Reb8 {[%clk 0:01:13.2]} 24. Qa4 {[%clk 0:01:25]} 24... Rb1 {[%clk
0:01:11.1]} 25. Rd1 {[%clk 0:01:24.6]} 25... g5 {[%clk 0:01:06.3]} 26. Nxe6
{[%clk 0:01:20.6]} 26... Qxe6 {[%clk 0:01:01]} 27. f4 {[%clk 0:01:17.4]} 27...
gxf4 {[%clk 0:00:57.7]} 28. Rxc4 {[%clk 0:01:17.1]} 28... Rab8 {[%clk
0:00:45.3]} 29. Rxf4 {[%clk 0:01:14]} 29... Ne4 {[%clk 0:00:19.9]} 30. Bxe4
{[%clk 0:01:04.9]} 30... dxe4 {[%clk 0:00:19.6]} 31. Qxe4 {[%clk 0:00:58.6]}
31... Qxa2 {[%clk 0:00:09.4]} 32. Qxe3 {[%clk 0:00:52.2]} 32... Qc2 {[%clk
0:00:06.7]} 33. Rff1 {[%clk 0:00:38.6]} 33... Rc8 {[%clk 0:00:02.7]} 34. Qd3
{[%clk 0:00:30.8]} 34... Qxc3 {[%clk 0:00:01.8]} 35. Qxc3 {[%clk 0:00:27.4]} 1-0

[Event "Early-Titled-Tuesday-Blitz-November-28-2023"]
[Site "Chess.com"]
[Date "2023.11.28"]
[Round "8"]
[White "Tobias_Koelle"]
[Black "Sadykov_Ramil"]
[Result "1-0"]
[WhiteElo "2858"]
[BlackElo "2703"]
[TimeControl "180+1"]
[EndTime "9:34:43 PST"]
[Termination "Tobias_Koelle won by resignation"]

1. d4 {[%clk 0:03:00.9]} 1... d5 {[%clk 0:02:56.2]} 2. Bf4 {[%clk 0:03:00]} 2...
Nf6 {[%clk 0:02:53.1]} 3. Nc3 {[%clk 0:02:59.7]} 3... a6 {[%clk 0:02:46.2]} 4.
e3 {[%clk 0:02:59.2]} 4... b5 {[%clk 0:02:39.9]} 5. h4 {[%clk 0:02:58.5]} 5...
h5 {[%clk 0:02:33.5]} 6. Nf3 {[%clk 0:02:54]} 6... Bg4 {[%clk 0:02:22.2]} 7. Be2
{[%clk 0:02:53.8]} 7... e6 {[%clk 0:02:17.4]} 8. Ne5 {[%clk 0:02:53]} 8... Bxe2
{[%clk 0:02:15.1]} 9. Nxe2 {[%clk 0:02:53.9]} 9... Bd6 {[%clk 0:02:10.3]} 10.
Bg5 {[%clk 0:02:51.6]} 10... c5 {[%clk 0:01:57.6]} 11. c3 {[%clk 0:02:47.9]}
11... Nbd7 {[%clk 0:01:41.3]} 12. Nxd7 {[%clk 0:02:45.4]} 12... Qxd7 {[%clk
0:01:41.3]} 13. Nf4 {[%clk 0:02:45.8]} 13... Bxf4 {[%clk 0:01:22.4]} 14. Bxf4
{[%clk 0:02:46.7]} 14... cxd4 {[%clk 0:01:10]} 15. cxd4 {[%clk 0:02:37.9]} 15...
Ne4 {[%clk 0:01:04.7]} 16. O-O {[%clk 0:02:34.6]} 16... Rc8 {[%clk 0:00:57.4]}
17. Qe2 {[%clk 0:02:11.3]} 17... g6 {[%clk 0:00:41.6]} 18. f3 {[%clk 0:02:03.2]}
18... Nd6 {[%clk 0:00:39.3]} 19. Rac1 {[%clk 0:01:51.3]} 19... O-O {[%clk
0:00:38.2]} 20. b3 {[%clk 0:01:46.7]} 20... Nf5 {[%clk 0:00:34.6]} 21. g3 {[%clk
0:01:41.3]} 21... Rxc1 {[%clk 0:00:30.6]} 22. Rxc1 {[%clk 0:01:42.2]} 22... Rc8
{[%clk 0:00:31]} 23. Qd2 {[%clk 0:01:40]} 23... f6 {[%clk 0:00:26.1]} 24. Rxc8+
{[%clk 0:01:33.6]} 24... Qxc8 {[%clk 0:00:26]} 25. e4 {[%clk 0:01:34.3]} 25...
Ne7 {[%clk 0:00:22.8]} 26. e5 {[%clk 0:01:34.3]} 26... f5 {[%clk 0:00:10.8]} 27.
Bg5 {[%clk 0:01:34.2]} 27... Qc7 {[%clk 0:00:06.1]} 28. Bf6 {[%clk 0:01:34.5]}
28... Kh7 {[%clk 0:00:03.7]} 29. Kf2 {[%clk 0:01:19.9]} 29... Ng8 {[%clk
0:00:03.9]} 30. Bg5 {[%clk 0:01:20.5]} 30... Kg7 {[%clk 0:00:04]} 31. Ke2 {[%clk
0:01:20.2]} 31... Kf7 {[%clk 0:00:04.4]} 32. Kd1 {[%clk 0:01:17]} 32... a5
{[%clk 0:00:04]} 33. Qd3 {[%clk 0:00:58.5]} 33... Qc6 {[%clk 0:00:02.6]} 34. Bd8
{[%clk 0:00:56.5]} 34... a4 {[%clk 0:00:02.2]} 35. Qc2 {[%clk 0:00:54.5]} 35...
Qxc2+ {[%clk 0:00:01.9]} 36. Kxc2 {[%clk 0:00:55.4]} 36... Ne7 {[%clk
0:00:01.8]} 37. Bxe7 {[%clk 0:00:55.1]} 37... Kxe7 {[%clk 0:00:02.7]} 38. bxa4
{[%clk 0:00:54.8]} 38... bxa4 {[%clk 0:00:02.7]} 39. f4 {[%clk 0:00:49.1]} 39...
Kd7 {[%clk 0:00:02.5]} 40. Kc3 {[%clk 0:00:49.4]} 40... Kc6 {[%clk 0:00:02.7]}
41. Kb4 {[%clk 0:00:50.3]} 41... Kb6 {[%clk 0:00:03.1]} 42. Kxa4 {[%clk
0:00:50.8]} 42... Ka6 {[%clk 0:00:03.5]} 43. Kb4 {[%clk 0:00:51.3]} 43... Kb6
{[%clk 0:00:04]} 44. a3 {[%clk 0:00:52]} 44... Kc6 {[%clk 0:00:02.6]} 45. Ka5
{[%clk 0:00:52.6]} 45... Kc7 {[%clk 0:00:02.6]} 46. Kb5 {[%clk 0:00:53.2]} 46...
Kb7 {[%clk 0:00:03.2]} 47. Kc5 {[%clk 0:00:53.9]} 47... Kc7 {[%clk 0:00:03.8]}
48. a4 {[%clk 0:00:54.7]} 48... Kd7 {[%clk 0:00:03.6]} 49. Kb6 {[%clk
0:00:53.9]} 49... Kc8 {[%clk 0:00:03.8]} 50. Kc6 {[%clk 0:00:54.2]} 1-0

[Event "Early-Titled-Tuesday-Blitz-November-28-2023"]
[Site "Chess.com"]
[Date "2023.11.28"]
[Round "8"]
[White "Jospem"]
[Black "Zhigalko_Sergei"]
[Result "1-0"]
[WhiteElo "3059"]
[BlackElo "2908"]
[TimeControl "180+1"]
[EndTime "9:34:45 PST"]
[Termination "Jospem won on time"]

1. e4 {[%clk 0:03:00.9]} 1... c5 {[%clk 0:03:00.1]} 2. Nc3 {[%clk 0:02:42.1]}
2... Nc6 {[%clk 0:03:00]} 3. Bb5 {[%clk 0:02:42.3]} 3... Nd4 {[%clk 0:03:00.1]}
4. Nf3 {[%clk 0:02:38.2]} 4... e6 {[%clk 0:02:55.7]} 5. Nxd4 {[%clk 0:02:33]}
5... cxd4 {[%clk 0:02:55.8]} 6. Ne2 {[%clk 0:02:33.8]} 6... Qg5 {[%clk
0:02:55.8]} 7. Bd3 {[%clk 0:01:46.5]} 7... Qxg2 {[%clk 0:02:54.1]} 8. Ng3 {[%clk
0:01:47.1]} 8... Qh3 {[%clk 0:02:54.1]} 9. Be2 {[%clk 0:01:38.5]} 9... Bd6
{[%clk 0:02:32.8]} 10. c3 {[%clk 0:01:38.5]} 10... Nf6 {[%clk 0:01:59.5]} 11. d3
{[%clk 0:01:34.1]} 11... dxc3 {[%clk 0:01:41.1]} 12. bxc3 {[%clk 0:01:33.9]}
12... O-O {[%clk 0:01:07.7]} 13. Bg5 {[%clk 0:01:26.3]} 13... Bxg3 {[%clk
0:00:58.7]} 14. fxg3 {[%clk 0:01:27.2]} 14... d6 {[%clk 0:00:54.5]} 15. Qd2
{[%clk 0:00:59.6]} 15... e5 {[%clk 0:00:52.8]} 16. Bxf6 {[%clk 0:00:58.8]} 16...
gxf6 {[%clk 0:00:52.4]} 17. Qe3 {[%clk 0:00:58.1]} 17... Be6 {[%clk 0:00:38]}
18. Kd2 {[%clk 0:00:55]} 18... Rfd8 {[%clk 0:00:23.7]} 19. Raf1 {[%clk
0:00:50.1]} 19... Kg7 {[%clk 0:00:21.2]} 20. Rf2 {[%clk 0:00:47.3]} 20... d5
{[%clk 0:00:21.4]} 21. Rhf1 {[%clk 0:00:30.5]} 21... dxe4 {[%clk 0:00:19.8]} 22.
Rxf6 {[%clk 0:00:29.3]} 22... exd3 {[%clk 0:00:11.4]} 23. Bd1 {[%clk 0:00:29.4]}
23... Rd5 {[%clk 0:00:02]} 24. Qg5+ {[%clk 0:00:19.9]} 24... Kh8 {[%clk
0:00:02.2]} 25. Rxf7 {[%clk 0:00:14.8]} 25... Bxf7 {[%clk 0:00:01.6]} 26. Qf6+
{[%clk 0:00:15.4]} 26... Kg8 {[%clk 0:00:01.5]} 27. Qxf7+ {[%clk 0:00:16.3]}
27... Kh8 {[%clk 0:00:01.8]} 28. Qf6+ {[%clk 0:00:15.8]} 28... Kg8 {[%clk
0:00:02.1]} 29. Bb3 {[%clk 0:00:13.3]} 29... Qd7 {[%clk 0:00:01.5]} 30. Rf5
{[%clk 0:00:09.8]} 1-0